bitfinex-derivatives/quotes_BNBF0:USTF0_20250510
["timestamp","ask_amount","ask_price","bid_price","bid_amount"]
[1746890959171,0.29944487,651.86,651.62,1.15788222]
[1746890959569,0.29944487,651.86,651.57,1.15788222]
[1746890959771,0.29944487,651.86,651.58,0.92598569]
[1746890959972,0.29944487,651.86,651.59,0.92598569]
[1746890960173,0.29944487,651.86,651.6,2.08386791]
[1746890960372,0.29944487,651.86,651.61,0.92598569]
[1746890960667,0.29944487,651.86,651.62,1.15788222]
[1746890960872,0.29944487,651.86,651.63,0.92598569]
[1746890961172,0.29944487,651.86,651.64,1.15788222]
[1746890961376,0.29944487,651.86,651.65,0.92609847]
[1746890961577,0.29944487,651.86,651.66,0.92609847]
[1746890961775,0.29944487,651.86,651.67,2.08398069]
[1746890961970,0.29944487,651.86,651.59,0.26681081]
[1746890961971,0.29944487,651.86,651.68,2.08398069]
[1746890962175,0.29944487,651.86,651.69,0.92609847]
[1746890962372,0.29944487,651.86,651.7,2.08397983]
[1746890962576,0.29944487,651.86,651.7,1.15788222]
[1746890962875,0.29944487,651.86,651.71,0.92602969]
[1746890963075,0.29944487,651.86,651.72,0.92602332]
[1746890963275,0.29944487,651.86,651.73,1.15788222]
[1746890963877,0.29944487,651.86,651.6,1.15788222]
[1746890964077,0.29944487,651.86,651.61,0.92598734]
[1746890964277,0.29944487,651.86,651.62,0.92598734]
[1746890964578,0.29944487,651.86,651.63,2.08386956]
[1746890964878,0.29944487,651.86,651.63,1.15788222]
[1746890965873,0.29944487,651.86,651.64,0.92601075]
[1746890966477,0.29944487,651.86,651.63,1.15788222]
[1746890966978,0.29944487,651.86,651.64,0.92596223]
[1746890967178,0.29944487,651.86,651.65,0.92596223]
[1746890967473,0.29944487,651.86,651.63,1.15788222]
[1746890968679,0.29944487,651.86,651.64,0.92599302]
[1746890968877,0.29944487,651.86,651.63,1.15788222]
[1746890969381,0.29944487,651.86,651.64,0.9258417]
[1746890969582,0.29944487,651.86,651.65,0.9258417]
[1746890969780,0.29944487,651.86,651.66,0.9258417]
[1746890969977,0.29944487,651.86,651.67,0.9258417]
[1746890970177,0.29944487,651.86,651.63,1.15788222]
[1746890970178,0.29944487,651.86,651.68,0.9258417]
[1746890970382,0.29944487,651.86,651.69,2.08372392]
[1746890970583,0.29944487,651.86,651.7,0.9258417]
[1746890970785,0.29944487,651.86,651.71,0.9258417]
[1746890970982,0.29944487,651.86,651.72,0.9258417]
[1746890971283,0.29944487,651.86,651.73,0.9258417]
[1746890971582,0.29944487,651.86,651.64,0.2667699]
[1746890971583,0.29944487,651.86,651.74,0.9258417]
[1746890971778,0.29944487,651.86,651.75,0.9258417]
[1746890971977,0.29944487,651.86,651.76,2.08372392]
[1746890972178,0.29944487,651.86,651.77,0.9258417]
[1746890972379,0.29944487,651.86,651.78,0.9258417]
[1746890972579,0.29944487,651.86,651.79,2.08372392]
[1746890972784,0.29944487,651.86,651.79,1.15788222]
[1746890973185,0.29944487,651.86,651.8,1.15788222]
[1746890973487,0.29944487,651.86,651.81,1.15788222]
[1746890973986,0.29944487,651.86,651.82,1.15788222]
[1746890974487,0.29944487,651.86,651.64,0.2667699]
[1746890974488,0.29944487,651.86,651.83,1.15788222]
[1746890975285,0.29944487,651.86,651.64,0.2667699]
[1746890975487,0.29944487,651.86,651.65,0.92474119]
[1746890975690,0.29944487,651.86,651.66,0.92474119]
[1746890975883,0.29944487,651.86,651.67,0.92474119]
[1746890976083,0.29944487,651.86,651.68,2.08257277]
[1746890976286,0.29944487,651.86,651.69,0.92474119]
[1746890976485,0.29944487,651.86,651.7,1.15783158]
[1746890976891,0.29944487,651.86,651.67,1.15783158]
[1746890977090,0.29944487,651.86,651.68,0.92487413]
[1746890977286,0.29944487,651.86,651.69,0.92487413]
[1746890977490,0.29944487,651.86,651.7,0.92487413]
[1746890977690,0.29944487,651.86,651.69,1.15783158]
[1746890977891,0.29944487,651.86,651.71,1.15783158]
[1746890978491,0.29944487,651.86,651.67,1.15783158]
[1746890978700,0.29944487,651.86,651.68,0.92488683]
[1746890978990,0.29944487,651.86,651.69,0.92488683]
[1746890979186,0.29944487,651.86,651.7,0.92488683]
[1746890979389,0.29944487,651.86,651.7,1.15783158]
[1746890979589,0.29944487,651.86,651.68,0.26679853]
[1746890979785,0.29944487,651.86,651.69,0.92492076]
[1746890979990,0.29944487,651.86,651.7,1.15783158]
[1746890980390,0.29944487,651.86,651.69,1.15783158]
[1746890980689,0.29944487,651.86,651.7,0.92496543]
[1746890980888,0.29944487,651.86,651.69,1.15783158]
[1746890981088,0.29944487,651.86,651.7,0.92495477]
[1746890981288,0.29944487,651.86,651.69,1.15783158]
[1746890981489,0.29944487,651.86,651.71,1.15783158]
[1746890981891,0.29944487,651.86,651.69,1.15783158]
[1746890984790,0.29944487,651.86,651.68,0.26679956]
[1746890986997,0.29944487,651.86,651.69,1.15856828]
[1746890987296,0.29944487,651.86,651.7,1.15856828]
[1746890987495,0.29944487,651.86,651.71,1.15856828]
[1746890987996,0.29944487,651.86,651.72,1.15856828]
[1746890988994,0.29944487,651.86,651.73,1.15856828]
[1746890989198,0.29944487,651.86,651.74,1.15856828]
[1746890989898,0.29944487,651.86,651.75,1.15856828]
[1746890990398,0.29944487,651.86,651.76,1.15856828]
[1746890990698,0.29944487,651.86,651.77,1.15856828]
[1746890991198,0.29944487,651.86,651.78,1.15856828]
[1746890991892,0.29944487,651.86,651.79,1.15856828]
[1746890992299,0.29944487,651.86,651.8,1.15856828]
[1746890992897,0.29944487,651.86,651.81,1.15856828]
[1746890994197,0.29944487,651.86,651.82,1.15856828]
[1746890994395,0.29944487,651.86,651.83,1.15856828]
[1746890994596,0.29944487,651.86,651.84,1.15856828]
[1746890994793,0.29944487,651.86,651.85,1.15856828]
[1746891002304,0.29944487,651.86,651.85,2.08339151]
[1746891003407,0.29944487,651.86,651.85,1.15856828]
[1746891027320,0.29944487,651.86,651.85,2.0850094]
[1746891028022,0.29944487,651.86,651.85,2.35588697]
[1746891028322,0.29944487,651.86,651.85,2.0850094]
[1746891028617,0.29944487,651.86,651.85,2.08501814]
[1746891029819,0.29944487,651.86,651.85,1.15856828]
[1746891030226,0.29944487,651.86,651.85,2.08504683]
[1746891030616,0.29944487,651.86,651.85,2.08474542]
[1746891030817,0.29944487,651.86,651.85,1.42945187]
[1746891031222,0.29944487,651.86,651.85,2.35572365]
[1746891031524,0.29944487,651.86,651.85,2.35555089]
[1746891031725,0.29944487,651.86,651.85,1.42945187]
[1746891032322,0.29944487,651.86,651.85,2.35554697]
[1746891033023,0.29944487,651.86,651.85,2.355612]
[1746891033726,0.29944487,651.86,651.85,2.08472841]
[1746891034725,0.29944487,651.86,651.85,1.15856828]
[1746891034927,0.29944487,651.86,651.85,2.08495515]
[1746891035726,0.29944487,651.86,651.85,1.15856828]
[1746891036027,0.29944487,651.86,651.85,2.08494669]
[1746891038231,0.29944487,651.86,651.85,2.08450216]
[1746891040531,0.29944487,651.86,651.85,2.39132121]
[1746891041937,0.29944487,651.86,651.85,1.46538733]
[1746891042133,0.29944487,651.86,651.85,2.39147452]
[1746891042635,0.29944487,651.86,651.85,1.46538733]
[1746891048135,0.29944487,651.86,651.85,2.39336783]
[1746891048336,0.29944487,651.86,651.85,1.46538733]
[1746891066551,0.29944487,651.86,651.85,2.39356406]
[1746891068550,0.29944487,651.86,651.85,2.39355202]
[1746891072149,0.29944487,651.86,651.85,2.39337167]
[1746891074655,0.29944487,651.86,651.85,1.46538733]
[1746891075857,0.29944487,651.86,651.85,0.30681905]
[1746891076960,0.29944487,651.86,651.85,1.46573979]
[1746891077259,0.29944487,651.86,651.85,0.30681905]
[1746891078059,0.29944487,651.86,651.85,1.46764175]
[1746891081161,0.29944487,651.86,651.85,0.30681905]
[1746891084564,0.29944487,651.86,651.12,0.97084576]
[1746891084768,0.29944487,651.86,651.83,0.26679546]
[1746891084966,0.29944487,651.86,651.13,0.57852918]
[1746891085167,0.29944487,651.86,651.14,2.08961186]
[1746891085362,0.29944487,651.86,651.15,0.92781292]
[1746891085568,0.29944487,651.86,651.16,0.92781292]
[1746891085869,0.29944487,651.86,651.17,2.36098208]
[1746891086167,0.29944487,651.86,651.18,1.50631788]
[1746891086366,0.29944487,651.86,651.19,2.39674188]
[1746891086565,0.29944487,651.86,651.2,1.23493822]
[1746891086765,0.29944487,651.86,651.21,2.39673245]
[1746891086966,0.29944487,651.86,651.22,1.23492879]
[1746891087266,0.29944487,651.86,651.23,2.66809323]
[1746891087469,0.29944487,651.86,651.24,1.23491936]
[1746891087667,0.29944487,651.86,651.25,2.08961186]
[1746891087866,0.29944487,651.86,651.26,0.92781292]
[1746891088066,0.29944487,651.86,651.27,0.92781292]
[1746891088262,0.29944487,651.86,651.28,0.92781292]
[1746891088472,0.29944487,651.86,651.29,2.08961186]
[1746891088768,0.29944487,651.86,651.3,2.36098989]
[1746891088969,0.29944487,651.86,651.31,2.39668529]
[1746891089171,0.29944487,651.86,651.32,1.23488164]
[1746891089363,0.29944487,651.86,651.33,1.50625495]
[1746891089564,0.29944487,651.86,651.34,1.23487221]
[1746891089767,0.29944487,651.86,651.35,1.23486749]
[1746891089966,0.29944487,651.86,651.36,1.23486278]
[1746891090164,0.29944487,651.86,651.37,2.39665701]
[1746891090369,0.29944487,651.86,651.38,1.50623131]
[1746891090570,0.29944487,651.86,651.39,1.23484864]
[1746891090767,0.29944487,651.86,651.4,2.66802083]
[1746891090971,0.29944487,651.86,651.41,1.23483921]
[1746891091167,0.29944487,651.86,651.42,1.2348345]
[1746891091370,0.29944487,651.86,651.43,1.50570744]
[1746891091568,0.29944487,651.86,651.44,2.08911155]
[1746891091766,0.29944487,651.86,651.45,1.50569801]
[1746891091971,0.29944487,651.86,651.46,2.39611428]
[1746891092266,0.29944487,651.86,651.47,2.39610956]
[1746891092468,0.29944487,651.86,651.48,0.92731261]
[1746891092667,0.29944487,651.86,651.47,1.46879695]
[1746891092668,0.29944487,651.86,651.49,0.92731261]
[1746891092869,0.29944487,651.86,651.5,2.08911155]
[1746891093070,0.29944487,651.86,651.51,0.92731261]
[1746891093269,0.29944487,651.86,651.5,1.16179894]
[1746891093270,0.29944487,651.86,651.52,2.08916266]
[1746891093470,0.29944487,651.86,651.53,0.92736372]
[1746891093873,0.29944487,651.86,651.54,1.16179894]
[1746891094073,0.29944487,651.86,651.55,0.92736372]
[1746891094474,0.29944487,651.86,651.56,1.16179894]
[1746891094671,0.29944487,651.86,651.57,0.92736372]
[1746891095074,0.29944487,651.86,651.58,1.16179894]
[1746891095276,0.29944487,651.86,651.59,0.92736372]
[1746891095477,0.29944487,651.86,651.6,0.92736372]
[1746891095677,0.29944487,651.86,651.61,0.92736372]
[1746891095872,0.29944487,651.86,651.62,2.08916266]
[1746891096076,0.29944487,651.86,651.63,0.92736372]
[1746891096275,0.29944487,651.86,651.64,2.08916266]
[1746891096476,0.29944487,651.86,651.65,0.92736372]
[1746891096675,0.29944487,651.86,651.66,1.16179894]
[1746891097177,0.29944487,651.86,651.67,1.16179894]
[1746891097478,0.29944487,651.86,651.68,1.16179894]
[1746891098385,0.29944487,651.86,651.69,1.16179894]
[1746891099078,0.29944487,651.86,651.7,1.16179894]
[1746891099279,0.29944487,651.86,651.71,0.92690007]
[1746891099476,0.29944487,651.86,651.72,2.08869901]
[1746891099680,0.29944487,651.86,651.73,2.08869901]
[1746891099881,0.29944487,651.86,651.74,2.08869901]
[1746891100081,0.29944487,651.86,651.75,2.08869901]
[1746891100285,0.29944487,651.86,651.76,0.92690007]
[1746891100582,0.29944487,651.86,651.77,0.92690007]
[1746891100776,0.29944487,651.86,651.78,0.92690007]
[1746891100977,0.29944487,651.86,651.77,1.16179894]
[1746891101180,0.29944487,651.86,651.78,1.16179894]
[1746891101382,0.29944487,651.86,651.79,1.16179894]
[1746891101883,0.29944487,651.86,651.8,1.16179894]
[1746891102384,0.29944487,651.86,651.81,1.16179894]
[1746891102684,0.29944487,651.86,651.6,0.26678831]
[1746891102878,0.29944487,651.86,651.61,0.9272272]
[1746891103078,0.29944487,651.86,651.62,2.08669185]
[1746891103380,0.29944487,651.86,651.63,0.9272272]
[1746891103578,0.29944487,651.86,651.64,2.08669185]
[1746891103880,0.29944487,651.86,651.65,2.08669185]
[1746891104079,0.29944487,651.86,651.66,0.9272272]
[1746891104479,0.29944487,651.86,651.67,1.15946465]
[1746891104684,0.29944487,651.86,651.68,0.9272272]
[1746891105482,0.29944487,651.86,651.69,1.15946465]
[1746891105686,0.29944487,651.86,651.7,0.9272272]
[1746891105980,0.29944487,651.86,651.71,0.92732497]
[1746891106183,0.29944487,651.86,651.72,2.08678962]
[1746891106382,0.29944487,651.86,651.72,1.15946465]
[1746891106681,0.29944487,651.86,651.61,1.15946465]
[1746891106886,0.29944487,651.86,651.62,0.92736501]
[1746891107184,0.29944487,651.86,651.63,0.92736501]
[1746891107379,0.29944487,651.86,651.64,0.92736501]
[1746891107583,0.29944487,651.86,651.65,0.92736501]
[1746891107778,0.29944487,651.86,651.64,1.15946465]
[1746891107983,0.29944487,651.86,651.65,0.92737801]
[1746891108183,0.29944487,651.86,651.66,2.08684266]
[1746891108382,0.29944487,651.86,651.67,0.92737801]
[1746891108585,0.29944487,651.86,651.68,2.08683325]
[1746891108786,0.29944487,651.86,651.69,2.08683325]
[1746891108984,0.29944487,651.86,651.7,0.9273686]
[1746891109187,0.29944487,651.86,651.71,1.15946465]
[1746891109585,0.29944487,651.86,651.72,0.92736753]
[1746891109789,0.29944487,651.86,651.73,0.92734018]
[1746891109987,0.29944487,651.86,651.74,2.08680483]
[1746891110188,0.29944487,651.86,651.75,2.08680483]
[1746891110490,0.29944487,651.86,651.76,2.08680483]
[1746891110690,0.29944487,651.86,651.77,0.92734018]
[1746891110884,0.29944487,651.86,651.76,1.15946465]
[1746891110885,0.29944487,651.86,651.78,2.08680483]
[1746891111088,0.29944487,651.86,651.6,0.26678831]
[1746891111089,0.29944487,651.86,651.79,2.08680483]
[1746891111287,0.29944487,651.86,651.79,1.15946465]
[1746891111993,0.29944487,651.86,651.8,1.15946465]
[1746891112990,0.29944487,651.86,651.81,1.15946465]
[1746891113390,0.29944487,651.86,651.82,1.15946465]
[1746891113793,0.29944487,651.86,651.83,1.15946465]
[1746891114389,0.29944487,651.86,651.84,1.15946465]
[1746891114888,0.29944487,651.86,651.85,1.15946465]
[1746891118195,0.29944487,651.86,651.78,0.26675661]
[1746891118792,0.29944487,651.86,651.79,1.15933266]
[1746891119195,0.29944487,651.86,651.8,1.15933266]
[1746891119797,0.29944487,651.86,651.79,1.15933266]
[1746891120697,0.29944487,651.86,651.78,0.26678319]
[1746891120895,0.29944487,651.86,651.79,1.15933266]
[1746891121497,0.29944487,651.86,651.8,0.92676852]
[1746891121699,0.29944487,651.86,651.81,0.92676852]
[1746891121891,0.29944487,651.86,651.82,0.92676852]
[1746891122090,0.29944487,651.86,651.83,0.92676852]
[1746891122291,0.29944487,651.86,651.84,2.08610118]
[1746891122492,0.29944487,651.86,651.85,0.92676852]
[1746891122697,0.29944487,651.86,651.85,2.08610118]
[1746891122992,0.29944487,651.86,651.85,1.15933266]
[1746891123199,0.29944487,651.86,651.85,2.08585627]
[1746891125300,0.03274755,651.86,651.85,2.08585627]
[1746891132806,0.03274755,651.86,651.85,2.35686667]
[1746891133805,0.03274755,651.86,651.85,2.35366528]
[1746891134506,0.03274755,651.86,651.85,2.66048433]
[1746891136007,0.03274755,651.86,651.85,2.66038923]
[1746891137506,0.03274755,651.86,651.85,2.6601755]
[1746891139406,0.03274755,651.86,651.85,2.3891651]
[1746891141106,0.03274755,651.86,651.85,2.38843466]
[1746891149513,0.03274755,651.86,651.85,2.65896849]
[1746891150114,0.03274755,651.86,651.85,2.65725102]
[1746891150413,0.07287356,651.88,651.85,2.65725102]
[1746891150713,0.07287356,651.88,651.86,1.19109931]
[1746891150914,0.07287356,651.88,651.87,2.07989814]
[1746891151113,0.07287356,651.88,651.87,2.35043197]
[1746891151414,0.07287356,651.88,651.87,2.07989814]
[1746891151818,0.07287356,651.88,651.87,2.35043755]
[1746891152111,0.07287356,651.88,651.87,2.65724718]
[1746891152616,0.07287356,651.88,651.87,2.6574912]
[1746891153912,0.07287356,651.88,651.87,2.38696942]
[1746891155919,0.07287356,651.88,651.87,2.65751555]
[1746891159322,0.07287356,651.88,651.87,2.65812482]
[1746891159923,0.07287356,651.88,651.87,2.38757869]
[1746891160323,0.07287356,651.88,651.87,2.6581916]
[1746891163024,0.07287356,651.88,651.87,2.65895738]
[1746891163719,0.07287356,651.88,651.87,2.38834447]
[1746891164125,0.07287356,651.88,651.87,2.65910075]
[1746891165621,0.07287356,651.88,651.87,2.38834447]
[1746891166826,0.07287356,651.88,651.87,2.38933216]
[1746891172129,0.07287356,651.88,651.87,2.38938791]
[1746891175829,0.07287356,651.88,651.87,1.46614229]
[1746891176028,0.07287356,651.88,651.87,2.39020266]
[1746891182646,0.07287356,651.88,651.87,1.46614229]
[1746891182847,0.07287356,651.88,651.87,2.39188986]
[1746891186345,0.07287356,651.88,651.87,1.46614229]
[1746891186649,0.07287356,651.88,651.87,2.39309479]
[1746891190150,0.07287356,651.88,651.87,2.39299608]
[1746891192050,0.07287356,651.88,651.87,2.39305445]
[1746891192452,0.07287356,651.88,651.87,2.39306069]
[1746891195753,0.07287356,651.88,651.87,2.39326774]
[1746891197551,0.07287356,651.88,651.87,2.39310835]
[1746891198146,0.07287356,651.88,651.87,2.66381658]
[1746891199351,0.07287356,651.88,651.87,2.39310835]
[1746891200153,0.07287356,651.88,651.87,2.6638332]
[1746891200651,0.07287356,651.88,651.87,2.39310835]
[1746891202554,0.07287356,651.88,651.87,2.66396421]
[1746891204956,0.07287356,651.88,651.87,2.66456775]
[1746891208456,0.30679552,651.9,651.87,2.66456775]
[1746891208655,0.30679552,651.9,651.88,0.92719272]
[1746891208851,0.30679552,651.9,651.89,0.92719272]
[1746891209056,0.30679552,651.9,651.89,0.9269975]
[1746891209250,0.30679552,651.9,651.89,1.19785336]
[1746891209459,0.30679552,651.9,651.89,2.3575629]
[1746891210358,0.30679552,651.9,651.89,2.35760852]
[1746891212260,0.30679552,651.9,651.89,2.35746395]
[1746891212961,0.30679552,651.9,651.89,1.4305654]
[1746891213155,0.30679552,651.9,651.89,1.73736562]
[1746891213462,0.30679552,651.9,651.89,2.66426774]
[1746891213652,0.30679552,651.9,651.89,2.66426603]
[1746891214155,0.30679552,651.9,651.89,2.66419666]
[1746891214363,0.30679552,651.9,651.89,1.73736562]
[1746891214564,0.30679552,651.9,651.89,2.66418181]
[1746891217063,0.30679552,651.9,651.89,2.39332595]
[1746891230278,0.30679552,651.9,651.89,2.39281982]
[1746891230577,0.30679552,651.9,651.89,1.46650976]
[1746891230977,0.30679552,651.9,651.89,2.39283331]
[1746891231174,0.30679552,651.9,651.89,1.46650976]
[1746891234275,0.30679552,651.9,651.89,2.39229653]
[1746891236576,0.30679552,651.9,651.89,2.39185311]
[1746891237379,0.30679552,651.9,651.89,2.66257525]
[1746891239385,0.30679552,651.9,651.89,2.66222803]
[1746891245989,0.30679552,651.9,651.89,2.66226586]
[1746891250793,0.30679552,651.9,651.89,2.39154372]
[1746891251800,0.30679552,651.9,651.89,2.39133431]
[1746891255202,0.30679552,651.9,651.89,2.39120525]
[1746891256300,0.30679552,651.9,651.89,2.66174551]
[1746891256600,0.30679552,651.9,651.89,2.39120525]
[1746891256901,0.30679552,651.9,651.89,2.6617407]
[1746891257101,0.30679552,651.9,651.89,2.66162834]
[1746891259003,0.30679552,651.9,651.89,2.39109289]
[1746891261004,0.30679552,651.9,651.89,2.6615824]
[1746891262203,0.30679552,651.9,651.89,2.39109289]
[1746891264103,0.30679552,651.9,651.89,1.46650976]
[1746891281120,0.30679552,651.9,651.89,2.39199354]
[1746891281422,0.30679552,651.9,651.89,1.46650976]
[1746891281921,0.30679552,651.9,651.89,2.39200582]
[1746891282920,0.30679552,651.9,651.89,1.46650976]
[1746891283121,0.30679552,651.9,651.89,2.39199591]
[1746891283420,0.30679552,651.9,651.89,1.46650976]
[1746891299337,0.30679552,651.9,651.89,0.30680022]
[1746891326057,0.30679552,651.9,651.87,0.26677706]
[1746891327559,0.30679552,651.9,650.96,0.97084576]
[1746891327762,0.30679552,651.9,651.87,0.26688242]
[1746891328162,0.30679552,651.9,650.98,0.3072291]
[1746891328360,0.30679552,651.9,650.99,0.92534758]
[1746891328559,0.30679552,651.9,651.0,2.08516324]
[1746891328760,0.30679552,651.9,651.01,1.50341022]
[1746891328961,0.30679552,651.9,651.03,0.3072055]
[1746891329161,0.30679552,651.9,651.04,2.0850906]
[1746891329359,0.30679552,651.9,651.06,0.30719134]
[1746891329562,0.30679552,651.9,651.07,2.0850906]
[1746891329763,0.30679552,651.9,651.08,2.0850906]
[1746891329961,0.30679552,651.9,651.09,0.92527494]
[1746891330160,0.30679552,651.9,651.1,1.23244741]
[1746891330359,0.30679552,651.9,651.11,2.39225835]
[1746891330562,0.30679552,651.9,651.12,1.23243798]
[1746891330763,0.30679552,651.9,651.13,1.50328096]
[1746891330960,0.30679552,651.9,651.14,2.39212824]
[1746891331160,0.30679552,651.9,651.15,0.92515898]
[1746891331363,0.30679552,651.9,651.16,1.23230315]
[1746891331561,0.30679552,651.9,651.17,2.39211409]
[1746891331762,0.30679552,651.9,651.18,1.50319029]
[1746891331964,0.30679552,651.9,651.19,2.39215353]
[1746891332165,0.30679552,651.9,651.2,0.92520785]
[1746891332565,0.30679552,651.9,651.21,0.2708477]
[1746891332760,0.30679552,651.9,651.22,0.92520785]
[1746891332963,0.30679552,651.9,651.23,2.08502351]
[1746891333162,0.30679552,651.9,651.24,0.92520785]
[1746891333369,0.30679552,651.9,651.25,2.08502351]
[1746891333562,0.30679552,651.9,651.26,1.23230486]
[1746891333764,0.30679552,651.9,651.27,2.08502351]
[1746891333967,0.30679552,651.9,651.28,1.23229543]
[1746891334266,0.30679552,651.9,651.29,2.39210637]
[1746891334467,0.30679552,651.9,651.3,0.92520785]
[1746891334673,0.30679552,651.9,651.31,0.92418593]
[1746891334965,0.30679552,651.9,651.32,1.23126299]
[1746891335165,0.30679552,651.9,651.33,0.92419427]
[1746891335368,0.30679552,651.9,651.34,1.23125356]
[1746891335567,0.30679552,651.9,651.35,1.19504197]
[1746891335860,0.30679552,651.9,651.36,2.35485763]
[1746891336064,0.30679552,651.9,651.37,1.19504197]
[1746891336265,0.30679552,651.9,651.38,2.35485763]
[1746891336466,0.30679552,651.9,651.39,0.92419427]
[1746891336666,0.30679552,651.9,651.4,0.92419427]
[1746891336966,0.30679552,651.9,651.41,2.66188392]
[1746891337171,0.30679552,651.9,651.42,0.92419427]
[1746891337365,0.30679552,651.9,651.43,0.92419427]
[1746891337666,0.30679552,651.9,651.44,2.39102208]
[1746891337867,0.30679552,651.9,651.45,1.23120171]
[1746891338066,0.30679552,651.9,651.46,2.08400993]
[1746891338263,0.30679552,651.9,651.47,0.92419427]
[1746891338464,0.30679552,651.9,651.48,2.39100323]
[1746891338667,0.30679552,651.9,651.49,0.92419427]
[1746891338967,0.30679552,651.9,651.5,2.08400993]
[1746891339166,0.30679552,651.9,651.51,0.92419427]
[1746891339361,0.30679552,651.9,651.52,0.92419427]
[1746891339564,0.30679552,651.9,651.53,0.92419427]
[1746891339762,0.30679552,651.9,651.54,0.92419427]
[1746891340062,0.30679552,651.9,651.55,2.083831]
[1746891340267,0.30679552,651.9,651.56,0.92401534]
[1746891340469,0.30679552,651.9,651.57,0.92401534]
[1746891340666,0.30679552,651.9,651.58,0.92401534]
[1746891340862,0.30679552,651.9,651.59,0.92401534]
[1746891341166,0.30679552,651.9,651.6,0.92401534]
[1746891341366,0.30679552,651.9,651.61,2.083831]
[1746891341568,0.30679552,651.9,651.61,1.15981566]
[1746891341868,0.30679552,651.9,651.48,0.3069933]
[1746891342068,0.30679552,651.9,651.62,1.15898602]
[1746891343068,0.30679552,651.9,651.63,2.0830091]
[1746891343267,0.30679552,651.9,651.64,0.92402308]
[1746891343464,0.30679552,651.9,651.65,0.92402308]
[1746891343668,0.30679552,651.9,651.66,0.92402308]
[1746891343870,0.30679552,651.9,651.67,0.92402308]
[1746891344071,0.30679552,651.9,651.68,0.9240391]
[1746891344369,0.30679552,651.9,651.69,1.15898602]
[1746891345069,0.30679552,651.9,651.54,1.15898602]
[1746891345264,0.30679552,651.9,651.55,0.92427658]
[1746891345468,0.30679552,651.9,651.56,2.0832626]
[1746891345768,0.30679552,651.9,651.57,0.92427973]
[1746891345964,0.30679552,651.9,651.58,2.08326575]
[1746891346267,0.30679552,651.9,651.59,2.08326575]
[1746891346461,0.30679552,651.9,651.6,0.92427973]
[1746891346869,0.30679552,651.9,651.61,1.15898602]
[1746891347070,0.30679552,651.9,651.62,0.92427973]
[1746891347871,0.30679552,651.9,651.63,1.15898602]
[1746891348073,0.30679552,651.9,651.64,0.92427973]
[1746891348372,0.30679552,651.9,651.65,0.92427973]
[1746891348667,0.30679552,651.9,651.66,2.08326575]
[1746891348872,0.30679552,651.9,651.67,2.08326575]
[1746891349172,0.30679552,651.9,651.68,0.92412936]
[1746891349368,0.30679552,651.9,651.69,0.92412936]
[1746891349574,0.30679552,651.9,651.7,0.92412936]
[1746891349768,0.30679552,651.9,651.71,0.92412936]
[1746891349966,0.30679552,651.9,651.72,0.92412936]
[1746891350273,0.30679552,651.9,651.72,1.15898602]
[1746891350676,0.30679552,651.9,651.59,1.15898602]
[1746891350874,0.30679552,651.9,651.6,0.92385434]
[1746891351074,0.30679552,651.9,651.61,1.23083713]
[1746891351275,0.30679552,651.9,651.62,2.08289109]
[1746891351469,0.30679552,651.9,651.63,1.23082771]
[1746891351675,0.30679552,651.9,651.64,0.92390507]
[1746891351976,0.30679552,651.9,651.65,1.46589924]
[1746891352173,0.30679552,651.9,651.66,0.92390507]
[1746891352370,0.30679552,651.9,651.67,0.9242226]
[1746891352678,0.30679552,651.9,651.67,1.15898602]
[1746891352969,0.30679552,651.9,651.68,1.1612012]
[1746891353475,0.30679552,651.9,651.69,1.1612012]
[1746891354176,0.30679552,651.9,651.66,1.1612012]
[1746891358177,0.30679552,651.9,651.67,0.92518798]
[1746891358378,0.30679552,651.9,651.66,1.1612012]
[1746891358579,0.30679552,651.9,651.67,0.92518656]
[1746891358780,0.30679552,651.9,651.66,1.1612012]
[1746891358979,0.30679552,651.9,651.67,0.92517085]
[1746891359179,0.30679552,651.9,651.65,0.30691322]
[1746891359180,0.30679552,651.9,651.68,2.08662898]
[1746891359385,0.30679552,651.9,651.68,1.1612012]
[1746891359587,0.30679552,651.9,651.69,0.92527592]
[1746891359781,0.30679552,651.9,651.7,0.92527592]
[1746891359985,0.30679552,651.9,651.71,2.08647712]
[1746891360285,0.30679552,651.9,651.71,1.1612012]
[1746891360787,0.30679552,651.9,651.66,1.1612012]
[1746891360982,0.30679552,651.9,651.67,1.19200391]
[1746891361181,0.30679552,651.9,651.68,0.92522072]
[1746891361386,0.30679552,651.9,651.69,2.08640146]
[1746891361587,0.30679552,651.9,651.7,0.92520026]
[1746891361886,0.30679552,651.9,651.71,2.08640146]
[1746891362084,0.30679552,651.9,651.72,0.92520026]
[1746891362285,0.30679552,651.9,651.73,0.92520026]
[1746891362482,0.30679552,651.9,651.74,2.08640146]
[1746891362684,0.30679552,651.9,651.75,0.92520026]
[1746891362990,0.30679552,651.9,651.76,2.08640146]
[1746891363183,0.30679552,651.9,651.76,1.1612012]
[1746891363785,0.30679552,651.9,651.71,0.26677808]
[1746891363985,0.30679552,651.9,651.77,1.1612012]
[1746891364484,0.30679552,651.9,651.72,1.1612012]
[1746891364689,0.30679552,651.9,651.73,0.92522168]
[1746891364890,0.30679552,651.9,651.74,2.08641748]
[1746891365086,0.30679552,651.9,651.75,2.08641748]
[1746891365284,0.30679552,651.9,651.76,0.92521628]